bitfinex-derivatives/quotes_ETHF0:USTF0_20251012
["timestamp","ask_amount","ask_price","bid_price","bid_amount"]
[1760312718168,7.6522184,4139.2,4139.1,0.00213183]
[1760312720068,7.6522184,4139.2,4139.1,0.43853183]
[1760312720069,7.3115184,4139.2,4139.1,0.43853183]
[1760312720265,3.12997676,4139.2,4139.1,0.43853183]
[1760312720563,3.2078,4139.5,4139.1,0.43853183]
[1760312720564,3.2078,4139.5,4139.4,0.4364]
[1760312720752,0.00204627,4140.0,4139.7,0.43441]
[1760312720951,0.00204627,4140.0,4139.9,0.4364]
[1760312722358,0.40304627,4140.0,4139.9,0.4364]
[1760312722558,0.00204627,4140.0,4139.9,0.4364]
[1760312723665,0.00204627,4140.0,4139.9,0.8708]
[1760312723859,0.00204627,4140.0,4139.9,0.4364]
[1760312725255,0.43443,4139.6,4139.5,0.441]
[1760312725762,0.43442,4139.7,4139.5,0.1762]
[1760312726069,0.43442,4139.7,4139.6,0.441]
[1760312727268,0.43444,4139.5,4139.2,0.87546]
[1760312727470,0.43444,4139.5,4139.2,0.43446]
[1760312727764,0.43444,4139.5,4139.3,0.441]
[1760312727964,0.43442,4139.7,4139.5,0.1762]
[1760312728166,0.43442,4139.7,4139.6,0.441]
[1760312728666,0.83542,4139.7,4139.6,0.441]
[1760312728866,0.43442,4139.7,4139.6,0.441]
[1760312730368,0.70962,4139.7,4139.6,0.7118]
[1760312730564,0.70962,4139.7,4139.1,3.64441183]
[1760312730565,1.08608,4139.6,4139.1,0.00213183]
[1760312730867,0.43445,4139.4,4139.1,1.01253183]
[1760312731068,0.43445,4139.4,4139.2,0.441]
[1760312731260,0.43445,4139.4,4139.3,1.0104]
[1760312731461,0.70965,4139.4,4139.3,1.0104]
[1760312732064,0.2752,4139.4,4139.3,1.44486]
[1760312732259,0.00204627,4140.0,4139.9,1.0104]
[1760312734266,0.27724627,4140.0,4139.9,1.0104]
[1760312734463,0.55254627,4140.0,4139.9,1.0104]
[1760312734665,0.00204627,4140.0,4139.9,1.0104]
[1760312734865,0.00204627,4140.0,4139.9,4.2182]
[1760312738072,0.4343,4140.9,4139.9,4.2182]
[1760312738073,3.2078,4141.0,4140.9,1.0104]
[1760312739071,3.21047297,4141.0,4140.9,1.0104]
[1760312739265,3.91995297,4141.0,4140.9,1.0104]
[1760312739569,0.5505,4140.8,4140.7,0.7118]
[1760312739769,0.5505,4140.8,4140.7,1.0104]
[1760312740067,0.2752,4140.8,4140.7,1.0104]
[1760312742673,0.2752,4140.8,4140.5,0.1762]
[1760312742674,0.9515,4140.6,4140.5,0.888]
[1760312742867,0.5505,4140.6,4140.5,0.888]
[1760312743066,0.2752,4140.6,4140.5,1.1866]
[1760312743476,0.9515,4140.6,4140.5,0.888]
[1760312743678,0.5505,4140.1,4140.0,0.6172]
[1760312743878,0.9515,4140.1,4140.0,0.441]
[1760312744175,0.5505,4140.1,4140.0,0.888]
[1760312745168,0.5505,4140.1,4140.0,1.1866]
[1760312745778,0.2752,4140.1,4140.0,1.1866]
[1760312746370,0.5505,4140.1,4140.0,1.1866]
[1760312747070,3.2078,4140.5,4140.4,0.6081]
[1760312747270,0.30577297,4141.0,4140.9,0.3158]
[1760312747470,0.61307297,4141.0,4140.9,0.751]
[1760312747675,0.3031,4140.6,4140.5,0.5014]
[1760312747874,0.3031,4140.6,4140.5,0.9366]
[1760312748269,0.3031,4140.6,4140.5,1.2289]
[1760312748579,0.43438,4140.1,4138.9,1.08626]
[1760312748877,0.43438,4140.1,4139.6,0.4352]
[1760312748878,0.6104,4139.7,4139.6,0.4352]
[1760312749073,0.3031,4139.2,4139.1,3.96093183]
[1760312749379,0.3031,4139.2,4139.1,4.25323183]
[1760312749993,0.3031,4139.2,4138.4,0.4352]
[1760312749994,0.43453,4138.6,4138.4,0.4352]
[1760312750279,0.3883,4138.8,4138.1,0.43459]
[1760312750979,0.43455,4138.5,4138.2,0.4352]
[1760312751180,0.43455,4138.5,4138.1,0.43645319]
[1760312751380,0.3883,4138.8,4138.2,0.4352]
[1760312751575,0.43453,4138.7,4138.2,0.43457]
[1760312751774,0.43453,4138.7,4138.3,0.4344]
[1760312751974,3.2078,4138.9,4138.6,0.4344]
[1760312752176,4.03221,4138.9,4138.7,0.4344]
[1760312752376,0.82443,4138.7,4138.5,0.4344]
[1760312752682,3.2078,4138.9,4138.1,0.00187319]
[1760312752683,0.3899,4138.5,4138.1,0.00187319]
[1760312752886,3.2078,4138.9,4138.5,0.1767]
[1760312753483,3.2078,4138.9,4138.6,0.4344]
[1760312753981,0.82443,4138.6,4138.1,0.00187319]
[1760312754178,0.82445,4138.5,4138.1,0.00187319]
[1760312754482,0.43456,4138.4,4138.2,0.4344]
[1760312754675,0.3899,4138.5,4138.1,0.00187319]
[1760312755075,0.43453,4138.6,4138.1,0.00187319]
[1760312755076,0.43453,4138.6,4138.2,0.4344]
[1760312755281,0.82442,4138.8,4138.4,0.4344]
[1760312755580,3.93957674,4138.8,4138.4,0.43455]
[1760312756984,3.93957674,4138.8,4138.5,0.4344]
[1760312757282,0.43453,4138.7,4138.2,0.43457]
[1760312757492,0.43454,4138.6,4138.2,0.43457]
[1760312757673,0.82444,4138.6,4138.3,0.4344]
[1760312757982,0.2955,4138.3,4138.2,0.72517]
[1760312758379,0.2955,4138.3,4138.2,1.03567]
[1760312758686,0.2955,4138.3,4138.2,1.0355]
[1760312758989,0.609,4138.3,4138.2,1.0355]
[1760312760773,0.9989,4138.3,4138.2,0.725]
[1760312760978,0.609,4138.3,4138.2,0.725]
[1760312761885,0.609,4138.3,4138.1,0.43645319]
[1760312761886,0.2955,4138.6,4138.5,0.9017]
[1760312762286,0.2955,4138.6,4138.5,1.2122]
[1760312763283,3.2078,4138.9,4138.6,0.4344]
[1760312763490,3.5033,4139.6,4139.5,1.2122]
[1760312763790,3.8168,4139.6,4139.5,1.2122]
[1760312763989,3.5252638,4139.9,4139.8,0.2906]
[1760312763990,3.1353638,4139.9,4139.8,0.2906]
[1760312764190,0.2955,4139.9,4139.8,1.0355]
[1760312764378,0.609,4139.9,4139.8,0.725]
[1760312764581,0.9989,4139.9,4139.8,0.4344]
[1760312765290,0.2955,4138.7,4138.6,3.2078]
[1760312765589,0.2955,4138.4,4138.3,3.9328]
[1760312766287,0.2955,4138.4,4138.3,0.725]
[1760312766488,0.9989,4138.4,4138.3,0.4344]
[1760312766682,0.9989,4138.2,4138.1,0.43627319]
[1760312767590,0.3899,4138.8,4138.1,0.60297319]
[1760312767786,0.43451,4138.9,4138.7,1.0355]
[1760312767990,0.609,4138.4,4138.3,3.4984]
[1760312768188,0.609,4138.4,4138.3,0.2906]
[1760312768390,0.609,4138.4,4138.3,0.725]
[1760312769286,0.9989,4138.4,4138.1,0.00187319]
[1760312769493,0.9989,4138.2,4138.1,0.43627319]
[1760312770390,0.609,4137.4,4137.1,3.6422]
[1760312770691,4.2942,4138.4,4137.1,3.6422]
[1760312770692,3.8168,4137.9,4137.8,0.2906]
[1760312770892,0.2955,4137.2,4137.1,3.9328]
[1760312771194,0.3899,4137.0,4136.6,0.4344]
[1760312771491,0.00235025,4137.0,4136.7,0.4344]
[1760312771892,0.00235025,4137.0,4136.6,0.00237873]
[1760312771893,0.00235025,4137.0,4136.9,0.4344]
[1760312775303,0.00235025,4137.0,4136.9,1.0355]
[1760312777799,3.2078,4137.9,4137.8,1.47012]
[1760312777993,3.8168,4138.5,4138.4,0.86895]
[1760312778192,3.8168,4138.5,4138.4,1.47005]
[1760312778193,3.2078,4138.5,4138.4,1.47005]
[1760312778799,0.00302747,4138.5,4138.4,1.47005]
[1760312779300,1.14947,4140.5,4138.4,1.47005]
[1760312779301,3.2078,4139.6,4139.5,1.04554]
[1760312779703,3.2078,4140.2,4140.0,0.1767]
[1760312779904,3.2078,4140.2,4140.1,0.86878]
[1760312780110,3.21057753,4140.2,4140.1,0.87086495]
[1760312780413,3.60047753,4140.2,4140.1,0.43646495]
[1760312780605,3.60047753,4140.2,4140.1,0.87086495]
[1760312782313,0.00277753,4140.2,4140.1,0.87086495]
[1760312784313,0.00277753,4140.2,4140.1,0.43648495]
[1760312786409,0.37837753,4140.2,4140.1,0.00208495]
[1760312786610,3.21057753,4140.2,4140.1,0.46298495]
[1760312786918,3.21057753,4140.2,4140.1,0.89736495]
[1760312787812,3.21057753,4140.2,4140.1,0.46298495]
[1760312788910,0.00277753,4140.2,4140.1,0.46298495]
[1760312789514,3.2078,4140.7,4140.5,0.1782]
[1760312789819,3.2078,4140.7,4140.6,0.89522]
[1760312790610,3.21035574,4140.7,4140.6,0.4609]
[1760312793519,0.00255574,4140.7,4140.6,0.4609]
[1760312794616,3.2078,4141.6,4141.5,0.6391]
[1760312795521,3.20981455,4141.6,4141.5,0.6391]
[1760312797220,0.80984,4141.5,4141.0,0.1782]
[1760312797413,0.43424,4141.4,4141.1,0.4609]
[1760312797613,0.43424,4141.4,4141.2,0.4609]
[1760312797816,0.43426,4141.3,4141.0,0.61247]
[1760312798019,4.12873674,4141.2,4140.6,0.43432]
[1760312798210,3.5834,4141.1,4140.5,0.1782]
[1760312798516,3.2078,4141.1,4140.7,0.4609]
[1760312798715,3.2078,4141.1,4141.0,0.6391]
[1760312799721,0.00201455,4141.6,4141.5,0.6391]
[1760312799915,3.2078,4143.1,4142.5,0.1782]
[1760312800111,0.4341,4142.8,4142.6,0.4609]
[1760312800418,0.4341,4142.8,4142.5,0.1782]
[1760312800811,0.00284294,4142.8,4142.6,0.4609]
[1760312801218,0.43411,4142.7,4142.6,0.4609]
[1760312801621,0.00284294,4142.8,4142.6,0.4609]
[1760312801923,0.00284294,4142.8,4142.5,0.1782]
[1760312802324,0.00284294,4142.8,4142.6,0.4609]
[1760312802726,0.43411,4142.7,4142.6,0.4609]
[1760312803128,0.00284294,4142.8,4142.6,0.4609]
[1760312803424,0.43694294,4142.8,4142.6,0.4609]
[1760312803816,0.00284294,4142.8,4142.6,0.4609]
[1760312804017,3.2078,4143.7,4143.6,0.4609]
[1760312804223,3.2078,4144.2,4144.0,0.1782]
[1760312804426,3.2078,4144.2,4144.1,0.4609]
[1760312804725,0.4392,4144.0,4143.1,0.4609]
[1760312804930,0.80965,4143.2,4143.1,0.4609]
[1760312805224,0.00216344,4143.2,4143.1,0.46262818]
[1760312806018,3.2078,4144.0,4143.6,0.434]
[1760312806219,3.2078,4144.0,4143.8,0.43399]
[1760312806419,3.2078,4144.0,4143.9,0.4228]
[1760312807131,3.2104761,4144.0,4143.9,0.4228]
[1760312807331,0.0026761,4144.0,4143.9,0.4228]
[1760312807625,3.2078,4144.6,4143.7,3.2078]
[1760312807626,3.2078,4145.1,4145.0,0.5894]
[1760312807821,3.64166,4145.1,4145.0,0.5894]
[1760312808024,3.64166,4145.1,4145.0,0.4228]
[1760312808323,0.4339,4144.6,4144.5,0.1666]
[1760312808518,0.43569233,4144.6,4144.5,0.1666]
[1760312808723,0.43569233,4144.6,4144.0,0.1666]
[1760312808724,0.43394,4144.3,4144.0,0.1666]
[1760312809223,0.43394,4144.3,4143.1,0.00172818]
[1760312809224,0.43395,4144.2,4144.1,0.4228]
[1760312809431,0.43398,4143.9,4143.4,0.43403]
[1760312809724,0.43398,4143.9,4143.1,0.00172818]
[1760312809725,0.43394,4144.3,4144.0,0.1666]
[1760312809922,3.2078,4144.4,4144.1,0.4228]
[1760312810122,3.2078,4144.4,4144.0,0.1666]
[1760312810321,3.64173,4144.4,4144.1,0.4228]
[1760312810722,0.43394,4144.3,4144.0,0.1666]
[1760312811220,0.43395,4144.2,4144.1,0.4228]
[1760312812233,0.43398,4143.9,4143.5,0.1666]
[1760312812530,0.43398,4143.9,4143.6,0.4279]
[1760312812732,0.434,4143.8,4143.6,0.4279]
[1760312813225,0.434,4143.7,4143.5,0.1666]
[1760312813433,0.434,4143.7,4143.6,0.4279]
[1760312813826,0.434,4143.7,4143.5,0.1666]
[1760312814133,6.96093674,4143.8,4143.2,0.4279]
[1760312814932,3.64179,4143.8,4143.6,0.4279]
[1760312815327,1.08474,4144.8,4144.0,0.1742]
[1760312815328,41.23395,4144.2,4144.0,0.1742]
[1760312815527,41.23395,4144.2,4144.1,0.4279]
[1760312815728,3.2078,4144.4,4144.1,0.4279]
[1760312816232,3.2078,4144.4,4144.3,0.4279]
[1760312816431,0.43389,4144.8,4144.5,0.6021]
[1760312816631,3.2078,4144.9,4144.5,0.6021]
[1760312817135,3.64168,4144.9,4144.5,0.6021]
[1760312817929,0.43389,4144.8,4144.5,0.6021]
[1760312818128,0.43569233,4144.6,4144.5,0.4279]
[1760312818325,0.00179233,4144.6,4144.5,0.6021]
[1760312819931,0.43396,4144.1,4144.0,0.4279]
[1760312820138,6.96093674,4144.3,4143.6,0.4279]
[1760312820433,0.43399,4143.8,4143.5,0.60822]
[1760312820633,0.434,4143.7,4143.5,0.1742]
[1760312820834,0.434,4143.7,4143.6,0.4279]
[1760312821536,0.43404,4143.3,4143.2,0.4279]
[1760312821729,0.43404,4143.3,4143.1,0.00172818]
[1760312821730,0.43405,4143.3,4143.1,0.00172818]
[1760312821932,0.43405,4143.3,4143.2,0.4279]
[1760312822734,0.43405,4143.3,4143.1,0.00172818]
[1760312822735,0.3603,4143.2,4143.1,0.00172818]
[1760312823034,1.04742048,4143.2,4143.1,0.00172818]
[1760312823742,0.68712048,4143.2,4143.1,0.42962818]
[1760312823937,0.43401,4143.6,4143.2,0.43405]
[1760312824235,0.43399,4143.8,4143.5,0.6021]
[1760312824435,0.68786856,4143.7,4143.6,0.4279]
[1760312824937,3.2078,4144.4,4144.2,0.43394]
[1760312825239,0.68779307,4144.3,4144.2,0.43394]
[1760312825638,0.68779307,4144.3,4144.2,0.4279]
[1760312825833,3.2078,4144.4,4144.3,0.86183]
[1760312826138,3.89459722,4144.4,4144.3,0.86183]
[1760312826541,3.89459722,4144.4,4144.3,0.4279]
[1760312827737,0.68679722,4144.4,4144.3,0.4279]
[1760312830842,4.75907888,4144.4,4144.3,0.4279]
[1760312831137,5.11937888,4144.4,4144.3,0.4279]
[1760312831536,4.75907888,4144.4,4144.3,0.4279]
[1760312832243,0.68679722,4144.4,4144.3,0.4279]
[1760312837447,0.00179233,4144.6,4144.0,0.1742]
[1760312837448,0.43394,4144.3,4144.1,0.4279]
[1760312837944,0.43394,4144.3,4144.2,0.5798]
[1760312838145,0.43394,4144.3,4144.2,1.0077]
[1760312839440,1.00944,4144.3,4144.2,1.0077]
[1760312839646,1.00944,4144.3,4143.7,0.4279]
[1760312839647,0.43399,4143.8,4143.7,0.4279]
[1760312839944,0.43403,4143.4,4143.3,0.4279]
[1760312840140,3.2078,4143.8,4143.6,0.4279]
[1760312840446,0.434,4143.7,4143.6,0.4279]
[1760312840741,3.2078,4143.8,4143.6,0.4279]
[1760312840940,3.2078,4143.8,4143.5,0.1742]
[1760312840941,0.434,4143.7,4143.5,0.1742]
[1760312841142,0.434,4143.7,4143.6,0.4279]
[1760312842148,3.2078,4143.9,4143.6,0.4279]
[1760312842149,3.2078,4143.9,4143.6,0.4303]
[1760312842443,3.2078,4143.9,4143.8,0.4303]
[1760312843762,0.43396,4144.1,4144.0,0.1665]
[1760312843944,0.43396,4144.1,4144.0,0.5968]
[1760312844146,0.43394,4144.3,4144.0,0.5968]
[1760312844446,0.43394,4144.3,4144.0,0.1665]
[1760312844646,0.43394,4144.3,4144.1,0.4303]
[1760312844847,0.43396,4144.2,4144.1,0.4303]
[1760312845347,0.43396,4144.2,4144.1,1.02]
[1760312845746,3.2078,4144.5,4144.4,0.2842]
[1760312845945,0.00179233,4144.6,4144.5,0.60041]
[1760312846247,1.42947,4145.8,4144.5,0.60041]
[1760312846248,2.22273972,4145.6,4145.5,0.5968]
[1760312846552,3.2078,4146.1,4146.0,0.1665]
[1760312846847,3.2078,4146.1,4146.0,0.5968]
[1760312847154,3.21061452,4146.1,4146.0,0.5968]
[1760312847445,0.00281452,4146.1,4146.0,0.5968]
[1760312847646,4.07228166,4148.1,4148.0,0.1665]
[1760312847950,3.64134,4148.1,4148.0,0.5968]
[1760312848337,3.2078,4148.1,4148.0,0.5968]
[1760312848542,3.2078,4148.1,4148.0,0.59944782]
[1760312848749,3.64411169,4148.1,4148.0,0.59944782]
[1760312849142,3.21057169,4148.1,4148.0,0.59944782]
[1760312849748,3.21057169,4148.1,4148.0,0.43294782]
[1760312850145,3.21057169,4148.1,4148.0,0.59944782]
[1760312850846,0.00277169,4148.1,4148.0,1.03299782]
[1760312851150,0.43342,4149.3,4149.0,0.1665]
[1760312851345,0.43343,4149.2,4149.1,0.4303]
[1760312852052,0.00168784,4149.2,4149.1,0.4303]
[1760312853744,0.3478,4151.4,4150.0,0.1665]
[1760312853946,0.43326,4150.8,4150.5,0.1665]
[1760312854242,0.22,4151.3,4151.0,0.1665]
[1760312854453,0.22,4151.3,4151.1,0.4303]
[1760312854954,0.65500767,4151.3,4151.1,0.43256024]
[1760312855249,0.65500767,4151.3,4151.2,0.4303]
[1760312856749,0.65500767,4151.3,4151.1,0.00226024]
[1760312856950,0.65500767,4151.3,4151.2,0.4303]
[1760312858757,3.2078,4151.9,4151.5,0.59967]
[1760312858951,0.43311,4152.3,4152.0,0.1665]
[1760312859144,3.2078,4152.4,4152.2,0.43311]
[1760312859346,0.3478,4153.9,4153.0,0.1665]
[1760312859347,3.2078,4153.7,4153.0,0.1665]
[1760312859547,0.43312,4152.1,4152.0,0.1665]
[1760312859744,0.43504451,4152.1,4152.0,0.1665]
[1760312859952,0.43504451,4152.1,4152.0,0.5968]
[1760312860654,3.2078,4152.8,4152.6,0.4303]
[1760312860861,0.43307,4152.6,4152.5,0.5968]
[1760312861556,0.43499693,4152.6,4152.5,0.4303]
[1760312861852,0.43312,4152.1,4152.0,0.4303]
[1760312862149,0.43317,4151.6,4151.5,0.1665]
[1760312862352,0.43317,4151.6,4150.5,0.1665]
[1760312862353,0.43321,4151.2,4150.6,3.2078]
[1760312862546,0.43321,4151.2,4151.1,0.43256024]
[1760312862946,0.43328,4150.6,4150.5,0.4303]
[1760312863153,1.08307,4151.1,4150.0,3.3743]
[1760312863154,0.43333,4150.1,4150.0,0.5968]
[1760312863954,0.43333,4150.1,4150.0,0.59897096]
[1760312864151,0.43333,4150.1,4150.0,0.00217096]
[1760312864460,0.43333,4150.1,4150.0,0.43247096]
[1760312864953,0.43333,4150.1,4150.0,0.00217096]
[1760312865162,0.78113,4150.1,4150.0,0.00217096]
[1760312865460,0.43333,4150.1,4150.0,0.59897096]
[1760312865963,44.0078,4150.5,4150.0,0.59897096]
[1760312865964,44.0078,4150.5,4150.1,0.4303]
[1760312866263,0.43332,4150.2,4150.1,0.4303]
[1760312866648,44.0078,4150.5,4150.1,0.4303]
[1760312866649,0.43332,4150.3,4150.1,0.4303]
[1760312867053,0.43332,4150.3,4150.0,0.16867096]
[1760312867253,0.43332,4150.2,4150.0,0.16867096]
[1760312867559,0.43332,4150.2,4150.1,0.4303]
[1760312868957,0.4333,4150.4,4150.1,0.4303]
[1760312869159,0.43332,4150.3,4150.1,0.4303]
[1760312869457,3.2078,4151.1,4150.3,0.4373]
[1760312869753,10.82444,4153.6,4151.0,0.1654]
[1760312869754,0.4332,4151.4,4151.0,0.1654]
[1760312870062,3.2078,4152.0,4151.6,0.4373]
[1760312870260,0.43316,4151.8,4151.6,0.4373]
[1760312870757,0.43317,4151.6,4151.5,0.1654]
[1760312871153,0.43317,4151.6,4151.5,0.6027]
[1760312872765,0.43322,4151.1,4151.0,0.6064]
[1760312874059,0.43322,4151.1,4150.5,0.6064]
[1760312874060,0.43328,4150.6,4150.5,0.6064]
[1760312874252,0.43333,4150.1,4150.0,0.60967096]
[1760312876365,1.07819267,4150.1,4150.0,0.60967096]
[1760312876765,0.43333,4150.1,4150.0,0.60967096]
[1760312877453,1.07921924,4150.1,4150.0,0.60967096]
[1760312880666,0.64588924,4150.1,4150.0,0.60967096]
[1760312880860,0.86448166,4150.9,4150.1,0.441]
[1760312881066,0.43332,4150.2,4150.1,0.441]
[1760312881271,1.07484684,4150.2,4150.1,0.441]
[1760312881465,0.3486,4150.1,4150.0,0.00217096]
[1760312881759,0.64152684,4150.1,4150.0,0.60677096]
[1760312882963,0.02993698,4150.1,4150.0,0.60677096]
[1760312883153,1.08303,4151.3,4150.1,0.441]
[1760312883359,1.08303,4151.3,4150.7,0.441]
[1760312883565,0.43322,4151.1,4151.0,0.1636]
[1760312883864,0.43321,4151.3,4151.1,0.441]
[1760312884065,0.43317,4151.7,4151.6,0.441]
[1760312884967,1.28148166,4152.1,4151.5,0.1636]
[1760312885262,4.29059,4152.2,4151.1,3.2078]
[1760312885263,0.417,4151.5,4151.1,3.6488]
[1760312885468,0.417,4151.2,4150.6,0.441]
[1760312885765,3.2078,4151.5,4150.6,0.441]
[1760312885960,0.43325,4150.9,4150.6,0.441]
[1760312886163,0.4332,4151.4,4150.9,0.43324]
[1760312886462,0.4332,4151.4,4150.5,3.3714]
[1760312886463,0.4332,4151.4,4151.2,0.441]
[1760312886665,0.43317,4151.7,4151.6,0.441]
[1760312887562,1.08293,4151.7,4151.2,0.441]
[1760312887768,0.4332,4151.3,4151.2,0.441]
[1760312888773,2.37376258,4152.3,4151.5,0.6046]
[1760312888774,3.2078,4152.1,4151.5,0.6046]
[1760312888966,5.57388859,4152.6,4151.7,0.441]
[1760312889567,0.00192693,4152.6,4152.2,0.441]
[1760312889768,0.43309,4152.4,4152.2,0.441]
[1760312890070,0.43309,4152.4,4152.1,3.2078]
[1760312890262,0.00192693,4152.6,4152.5,0.6046]
[1760312891473,0.00192693,4152.6,4152.5,0.441]
[1760312892969,0.00192693,4152.6,4152.5,0.6046]
[1760312895870,1.50161693,4152.6,4152.2,0.441]
[1760312896179,1.50161693,4152.6,4152.1,3.2078]
[1760312896379,0.4331,4152.3,4152.2,0.441]
[1760312898473,3.20972693,4152.6,4152.2,0.441]
[1760312898873,3.20972693,4152.6,4152.5,0.1636]
[1760312899074,0.43499693,4152.6,4152.5,0.6046]
[1760312899276,0.00192693,4152.6,4152.5,0.6046]
[1760312900069,3.64081,4153.2,4153.0,0.1636]
[1760312900275,3.64081,4153.2,4153.1,0.441]
[1760312901182,0.00290091,4153.2,4153.1,0.44327627]
[1760312901779,0.42120091,4153.2,4153.1,0.00227627]
[1760312902080,0.00290091,4153.2,4153.1,0.41457627]
[1760312908281,0.42120091,4153.2,4153.1,0.41457627]
[1760312908486,0.42120091,4153.2,4153.1,0.00227627]
[1760312909688,0.42120091,4153.2,4152.2,3.2078]
[1760312909689,0.4331,4152.3,4152.2,3.2078]
[1760312909895,4.29055,4152.3,4151.7,0.4123]
[1760312910099,0.43316,4151.7,4151.6,3.6201]
[1760312910392,0.43316,4151.7,4151.5,0.1636]
[1760312910393,0.4332,4151.3,4151.2,0.4123]
[1760312910594,0.8515,4151.3,4151.2,0.4123]
[1760312910786,0.8515,4151.3,4151.2,0.41538431]
[1760312911185,0.4332,4151.3,4151.2,0.41538431]
[1760312911782,0.8515,4151.3,4151.2,0.41538431]
[1760312911996,0.8515,4151.3,4151.2,0.00308431]
[1760312912391,0.4332,4151.3,4151.2,0.41538431]
[1760312912593,0.43318,4151.5,4151.3,0.4123]
[1760312912793,0.8515,4151.3,4151.2,0.00308431]
[1760312913184,0.4332,4151.3,4151.2,0.41538431]
[1760312913691,0.8515,4151.3,4151.2,0.00308431]
[1760312913892,0.4332,4151.3,4151.2,0.41538431]
[1760312914994,0.8515,4151.3,4151.2,0.00308431]
[1760312915191,0.4333,4150.4,4150.3,3.2078]
[1760312915391,0.8516,4150.4,4150.3,3.6201]
[1760312915586,0.4183,4149.9,4149.8,5.31629661]
[1760312915785,0.43338,4149.6,4149.5,0.5898]
[1760312915994,0.43338,4149.6,4149.5,0.4123]
[1760312916189,0.43593113,4149.6,4149.5,0.41400772]
[1760312916788,0.85423113,4149.6,4149.5,0.41400772]
[1760312916987,0.43593113,4149.6,4149.5,0.41400772]
[1760312917995,0.85423113,4149.6,4149.5,0.41400772]
[1760312918397,0.43593113,4149.6,4149.5,0.41400772]
[1760312918595,0.43593113,4149.6,4149.5,0.59150772]
[1760312919096,0.00255113,4149.6,4149.5,0.59150772]
[1760312919798,3.2078,4151.8,4150.6,0.43328]
[1760312920095,0.4183,4152.4,4151.6,0.53366]
[1760312920304,0.4331,4152.3,4152.0,3.2078]
[1760312920499,0.1723,4152.5,4152.0,3.2078]
[1760312920500,0.60538,4152.5,4152.0,3.2078]
[1760312920695,0.43305,4152.8,4152.0,3.64093]
[1760312920894,0.43503928,4152.8,4152.1,0.43311]
[1760312921090,0.00197928,4152.8,4152.0,3.64093]
[1760312921401,0.43311,4152.3,4151.5,3.2078]
[1760312921596,0.4183,4152.2,4151.5,3.2078]
[1760312922196,0.1723,4152.0,4151.5,3.2078]
[1760312922397,0.60544,4152.0,4151.5,3.64098]
[1760312922599,0.4183,4151.9,4151.6,0.43317]
[1760312922903,0.4183,4151.6,4151.5,3.2078]
[1760312923095,0.4183,4151.6,4150.1,1.08332]
[1760312923096,0.5906,4151.0,4150.9,3.2078]
[1760312923295,0.5906,4151.0,4150.2,1.79669661]
[1760312923296,0.4183,4150.7,4150.4,3.2078]
[1760312923596,0.5906,4150.5,4150.4,3.2078]
[1760312925194,41.3906,4150.5,4150.4,3.2078]
[1760312926103,0.4183,4150.3,4150.2,3.2078]
[1760312926304,40.9723,4150.5,4149.7,3.2078]
[1760312926305,0.4183,4150.4,4149.7,3.2078]
[1760312926501,0.1723,4150.0,4149.7,3.2078]
[1760312926802,0.4183,4149.9,4149.8,0.43336]
[1760312928002,0.84526,4149.9,4149.7,3.2078]
[1760312928204,0.4119,4149.8,4149.7,3.2078]
[1760312928399,0.41436503,4149.8,4149.7,3.2078]
[1760312933105,0.41436503,4149.8,4149.7,3.3044]
[1760312933106,0.00246503,4149.8,4149.7,3.3044]
[1760312934604,0.60554,4151.0,4150.6,0.43327]
[1760312934803,0.581,4151.0,4150.7,0.43326]
[1760312935000,0.4087,4151.0,4150.9,0.43324]
[1760312935308,3.2078,4151.4,4151.2,0.52731]
[1760312935511,0.4087,4151.3,4151.0,0.43323]
[1760312936206,3.20978731,4151.4,4150.9,3.2078]
[1760312936403,0.5706,4151.0,4150.9,3.2078]
[1760312936598,0.4087,4151.0,4150.9,3.2078]
[1760312937405,4.05168731,4151.4,4151.0,0.52733]
[1760312937910,0.4087,4151.2,4150.9,3.2078]
[1760312938106,0.4087,4151.2,4151.0,0.43323]
[1760312938605,0.43321,4151.3,4150.9,3.2078]
[1760312938906,0.43321,4151.3,4150.9,3.64104]
[1760312939100,0.4087,4151.2,4150.9,3.64104]
[1760312939607,0.00198731,4151.4,4151.3,0.0941]
[1760312940208,0.4087,4152.4,4151.3,0.0941]
[1760312940512,3.3697,4152.5,4151.3,0.0941]
[1760312940513,0.43316,4151.8,4151.3,3.2078]
[1760312940701,0.4087,4151.7,4151.3,3.2078]
[1760312941007,0.4087,4152.2,4151.6,0.0921]
[1760312941209,0.00288133,4152.2,4152.0,3.73303]
[1760312941409,0.00288133,4152.2,4152.1,0.52522]
[1760312941608,1.0824,4153.7,4152.0,3.2078]
[1760312941609,0.4087,4153.3,4152.7,0.0921]
[1760312941809,0.4087,4153.3,4153.0,0.43302]
[1760312942108,0.4087,4153.9,4152.8,0.0921]
[1760312942411,0.4087,4153.9,4153.3,0.0921]
[1760312942714,0.4106374,4153.9,4153.7,3.2078]
[1760312943014,0.4106374,4153.9,4153.8,0.0921]
[1760312943015,0.0019374,4153.9,4153.8,0.0921]
[1760312943213,0.00708685,4154.7,4153.8,3.72943387]
[1760312943511,0.00708685,4154.7,4154.1,0.0858]
[1760312943708,0.00708685,4154.7,4154.3,3.2078]
[1760312943905,0.00708685,4154.7,4154.5,0.0858]
[1760312944305,0.00988301,4154.7,4154.3,3.2936]
[1760312944506,0.00988301,4154.7,4154.4,0.43288]
[1760312944705,0.00988301,4154.7,4154.3,3.2078]
[1760312944706,0.43287,4154.5,4154.3,3.2078]
[1760312944906,0.59477,4154.5,4153.7,0.43295]
[1760312945103,0.4087,4154.4,4153.7,0.43295]
[1760312945512,0.4087,4154.4,4154.3,3.2078]
[1760312946420,0.84158,4154.4,4154.3,3.2078]